Cogmind - Beta 13 @@@ ROGUE MODE // 2024.05.31 @ 03:02:57 Player: Padacuw Result: Destroyed by L-31 Rogue with Katana Performance ------------- Evolutions (0) 0 Regions Visited (4) 800 Robots Destroyed (9) 45 Value Destroyed (182) 182 Prototype IDs (23) 460 Alien Tech Used (0) 0 Bonus (300) 300 TOTAL SCORE: 1787 Bonus ------- Aligned with FarCom 300 Cogmind --------- Core Integrity 0/250 Matter 95/300 Energy 100/100 System Corruption 0% Temperature Cool (0) Movement Core (50) Location -9/Mines Parts ------- > --- POWER (1) -------- (None) > --- PROPULSION (2) --- (None) > --- UTILITY (2) ------ 0b10 Alert Chip > --- WEAPON (2) ------- (None) > --- INVENTORY (5) ---- Fission Core Fission Core Peak State ------------ > --- POWER ------------ Ion Engine > --- PROPULSION ------- Aluminum Leg > --- UTILITY ---------- Heat Sink 0b10 Alert Chip > --- WEAPON ----------- Light Assault Rifle > --- INVENTORY -------- Fission Core Fission Core [Rating: 11] Favorites ----------- Power Ion Engine Engine Ion Engine Propulsion Aluminum Leg Leg Aluminum Leg Utility Heat Sink Device Heat Sink Processor 0b10 Alert Chip Weapon Light Assault Rifle Ballistic Gun Light Assault Rifle Launcher Grenade Launcher Build | -11 -10 -10 -10 -9 ------- Run | Yrd Mat Min Exi Min Slots Evolved . | . . . . . Power . | . . . . . Propulsion . | . . . . . Utility . | . . . . . Weapon . | . . . . . Parts Attached 20 | 8 6 5 1 . Power 5 | 3 . 2 . . Engine 5 | 3 . 2 . . Core . | . . . . . Reactor . | . . . . . Propulsion 4 | 3 . 1 . . Treads . | . . . . . Leg 4 | 3 . 1 . . Wheel . | . . . . . Hover . | . . . . . Flight . | . . . . . Utility 7 | 1 4 1 1 . Device 6 | 1 4 1 . . Storage . | . . . . . Processor 1 | . . . 1 . Hackware . | . . . . . Protection . | . . . . . Artifact . | . . . . . Weapon 4 | 1 2 1 . . Energy Gun . | . . . . . Energy Cannon . | . . . . . Ballistic Gun 3 | 1 1 1 . . Ballistic Cannon . | . . . . . Launcher 1 | . 1 . . . Special Weapon . | . . . . . Impact Weapon . | . . . . . Slashing Weapon . | . . . . . Piercing Weapon . | . . . . . Special Melee Weapon . | . . . . . Unidentified Prototypes 1 | . . . 1 . Parts Lost 11 | . . 7 . 4 Power 2 | . . 1 . 1 Propulsion 3 | . . 2 . 1 Utility 3 | . . 2 . 1 Weapon 3 | . . 2 . 1 Highest Loss Streak 7 | . . 7 . 2 To Critical Strikes . | . . . . . Average Slot Usage (%) 68 | . 80 87 65 45 Engine 13 | . 14 12 14 12 Leg 16 | . 28 24 14 14 Device 14 | . 16 24 14 4 Processor 7 | . . . 8 14 Ballistic Gun 13 | . 14 17 14 . Launcher 1 | . 6 7 . . Naked Turns . | . . . . . Heaviest Build 13 | 5 13 12 7 6 Greatest Support 20 | 20 20 20 10 10 Greatest Overweight (x) 2 | . . 2 . . Average Overweight (x) . | . . . . . Largest Inventory Capacity 5 | 5 5 5 5 5 Average Capacity 5 | 5 5 5 5 5 Most Carried 5 | 5 5 5 3 2 Average Carried 2 | 2 4 2 1 2 Final Capacity 5 | 5 5 5 5 5 Final Carried 5 | 5 5 . 2 2 Class Distribution -------------------- 100% | Mutant Dominant Class ---------------- Mutant | -10/Materials Mutant | -10/Mines Mutant | -10/Exiles Mutant | -9/Mines Resources | -11 -10 -10 -10 -9 ----------- Run | Yrd Mat Min Exi Min Matter Collected 330 | 283 47 . . . Remotely . | . . . . . Salvage Created 244 | 50 68 126 . . Parts 17 | 3 5 9 . . Haulers Intercepted . | . . . . . Recyclers Shooed . | . . . . . Parts Field Recycled . | . . . . . Retrieved Matter . | . . . . . Parts Self-Destructed . | . . . . . Prevented . | . . . . . Kills | -11 -10 -10 -10 -9 ------- Run | Yrd Mat Min Exi Min Combat Hostiles Destroyed 27 | 1 5 21 . . Guns 8 | 1 . 7 . . AOE 19 | . 5 14 . . Classes Destroyed 3 | 1 1 1 . . Swarmer 6 | . 3 3 . . Grunt 3 | 1 2 . . . Assembled 18 | . . 18 . . Best Kill Streak 21 | 1 3 21 . . Combat Bots Only 21 | 1 3 21 . . Max Kills in Single Turn 6 | 1 3 6 . . Gunslinging . | . . . . . Exploded 6 | . 3 6 . . Melee . | . . . . . Uniques/NPCs Destroyed . | . . . . . Combat | -11 -10 -10 -10 -9 -------- Run | Yrd Mat Min Exi Min Hostile Shots Fired 93 | 2 13 52 . 26 Missed 25 | . 4 15 . 6 Damage Taken 1016 | 23 52 590 . 351 Core 281 | . 4 104 . 173 Absorbed by Shields 112 | . 20 92 . . Core Remaining (%) 100 | 100 . . . . Volleys Fired 24 | 3 2 16 . 3 Largest 2 | 1 2 2 . 1 Hottest 53 | 20 53 53 . 20 Shots Fired 40 | 3 4 30 . 3 Gun 29 | 3 2 21 . 3 Cannon . | . . . . . Launcher 11 | . 2 9 . . Special . | . . . . . Kinetic 29 | 3 2 21 . 3 Thermal . | . . . . . Explosive 11 | . 2 9 . . Electromagnetic . | . . . . . Robot Hit Streak 7 | 2 1 7 . 1 Robot Miss Streak 4 | 1 2 4 . 2 Penetration Max . | . . . . . Secondary Targets . | . . . . . Shots Hit Robots 25 | 2 2 20 . 1 Core Hits 53 | 2 8 43 . . Critical Kills . | . . . . . Critical Parts Destroyed . | . . . . . Critical Strikes . | . . . . . Melee Attacks . | . . . . . Impact . | . . . . . Slashing . | . . . . . Piercing . | . . . . . Sneak Attacks . | . . . . . Combat Hostiles . | . . . . . Follow-up Attacks . | . . . . . Damage Inflicted 1220 | 17 188 1005 . 10 Guns 290 | 17 . 263 . 10 Cannons . | . . . . . Explosions 930 | . 188 742 . . Melee . | . . . . . Ramming . | . . . . . Kinetic 290 | 17 . 263 . 10 Thermal . | . . . . . Explosive 930 | . 188 742 . . Electromagnetic . | . . . . . Impact . | . . . . . Slashing . | . . . . . Piercing . | . . . . . Highest Corruption . | . . . . . Average Corruption . | . . . . . Corruption Purged . | . . . . . Corruption Blocked . | . . . . . Overload Shots . | . . . . . Overflow Damage 14 | . . 14 . . Projectiles . | . . . . . Explosions 14 | . . 14 . . Melee . | . . . . . Knockbacks . | . . . . . Impact . | . . . . . Kinetic . | . . . . . Secondary . | . . . . . Self-Inflicted Damage 28 | . . 28 . . Shots 1 | . . 1 . . Rammed . | . . . . . Targets Rammed . | . . . . . Kicked . | . . . . . Crushed . | . . . . . Highest Temperature 7 | 6 . 7 . . Average Temperature 4 | 6 . 3 . . Received Heat Transfer 165 | 12 . 66 . 87 Siege Activations . | . . . . . Robots Corrupted . | . . . . . Combat Hostiles . | . . . . . Parts Fried . | . . . . . Impact Corruptions . | . . . . . Robots Melted . | . . . . . Combat Hostiles . | . . . . . Parts Melted . | . . . . . Heat Transferred . | . . . . . Parts Sabotaged . | . . . . . Parts Stolen . | . . . . . Parts Stripped . | . . . . . Power Chain Reactions . | . . . . . Alert | -11 -10 -10 -10 -9 ------- Run | Yrd Mat Min Exi Min Peak Influence 169 | 20 169 169 . 12 Initial 65 | . 13 65 . . Average 43 | 5 46 138 . . Maximum Alert Level . | . . . . . Low Security (%) 100 | 100 100 100 . 100 Level 1 . | . . . . . Level 2 . | . . . . . Level 3 . | . . . . . Level 4 . | . . . . . Level 5 . | . . . . . High Security . | . . . . . Max Security . | . . . . . Squads Dispatched 1 | . 1 . . . Investigation . | . . . . . Extermination . | . . . . . Reinforcement 1 | . 1 . . . Assault . | . . . . . Garrison . | . . . . . Intercept . | . . . . . Searches Triggered . | . . . . . Construction Impeded . | . . . . . Haulers Reinforced . | . . . . . Active Scanning Responses . | . . . . . Cargo Convoy Interrupts . | . . . . . Stealth | -11 -10 -10 -10 -9 --------- Run | Yrd Mat Min Exi Min Distress Signals . | . . . . . Communications Jammed . | . . . . . Distress Signals . | . . . . . Times Spotted 38 | 1 5 27 . 5 Peak Tracking Total 11 | 1 3 11 . 5 Tactical Retreats . | . . . . . Traps | -11 -10 -10 -10 -9 ------- Run | Yrd Mat Min Exi Min Traps Triggered . | . . . . . Indirectly . | . . . . . Trap Hack Attempts . | . . . . . Triggered . | . . . . . Disarmed . | . . . . . Reprogrammed . | . . . . . Reused . | . . . . . Traps Extracted . | . . . . . Installed . | . . . . . Triggered 1 | . . 1 . . Machines | -11 -10 -10 -10 -9 ---------- Run | Yrd Mat Min Exi Min Machines Disabled 2 | . 2 . . . Max in Single Turn 2 | . 2 . . . Machines Repaired . | . . . . . Machines Dismantled . | . . . . . Machines Sabotaged . | . . . . . Overloaded Fab Kills . | . . . . . Hacking | -11 -10 -10 -10 -9 --------- Run | Yrd Mat Min Exi Min Machines Accessed 5 | . . . 5 . Terminals . | . . . . . Fabricators . | . . . . . Repair Stations . | . . . . . Recycling Units . | . . . . . Scanalyzers . | . . . . . Garrison Access . | . . . . . Total Hacks 36 | . . . 36 . Successful 36 | . . . 36 . Failed . | . . . . . Catastrophic . | . . . . . Database Lockouts . | . . . . . Manual 1 | . . . 1 . Terminals . | . . . . . Fabricators . | . . . . . Repair Stations . | . . . . . Recycling Units . | . . . . . Scanalyzers . | . . . . . Garrison Access . | . . . . . Terminal Hacks 36 | . . . 36 . Record 35 | . . . 35 . Derelict Proto ID Bank 1 | . . . 1 . Fabricator Hacks . | . . . . . Repair Station Hacks . | . . . . . Recycling Unit Hacks . | . . . . . Scanalyzer . | . . . . . Garrison Access Hacks . | . . . . . Unauthorized Hacks . | . . . . . Terminals . | . . . . . Fabricators . | . . . . . Repair Stations . | . . . . . Recycling Units . | . . . . . Scanalyzers . | . . . . . Garrison Access . | . . . . . Data Cores Recovered . | . . . . . Used . | . . . . . Hacking Detections . | . . . . . Full Trace Events . | . . . . . Feedback Events . | . . . . . Feedback Blocked . | . . . . . Robot Schematics Acquired . | . . . . . Robots Built . | . . . . . Authchips . | . . . . . Time . | . . . . . Total Robot Build Rating . | . . . . . Part Schematics Acquired . | . . . . . Parts Built . | . . . . . Authchips . | . . . . . Time . | . . . . . Total Part Build Rating . | . . . . . Parts Repaired . | . . . . . Time . | . . . . . Parts Recycled . | . . . . . Recycled Matter . | . . . . . Retrieved Matter . | . . . . . Retrieved Components . | . . . . . Parts Scanalyzed . | . . . . . Part Schematics Acquired . | . . . . . Parts Damaged . | . . . . . Bothacking | -11 -10 -10 -10 -9 ------------ Run | Yrd Mat Min Exi Min Used RIF Installer . | . . . . . Robots Hacked . | . . . . . Non-combat . | . . . . . Combat . | . . . . . Robot Hacks Applied . | . . . . . Relay Couplers Released . | . . . . . Fabnet Peak Effective % . | . . . . . Robots Rewired . | . . . . . Allies Hacked . | . . . . . Hacks Repelled . | . . . . . Allies | -11 -10 -10 -10 -9 -------- Run | Yrd Mat Min Exi Min Total Allies . | . . . . . Largest Group . | . . . . . Highest-Rated Group . | . . . . . Highest-Rated Ally . | . . . . . Total Orders . | . . . . . Ally Attacks . | . . . . . Total Damage . | . . . . . Kills . | . . . . . Allies Corrupted . | . . . . . Allies Melted . | . . . . . Intel | -11 -10 -10 -10 -9 ------- Run | Yrd Mat Min Exi Min Robot Analysis Total . | . . . . . Derelict Logs Recovered 1 | . . . . 1 Drone Launches . | . . . . . Drone Recoveries . | . . . . . Exploration | -11 -10 -10 -10 -9 ------------- Run | Yrd Mat Min Exi Min Turns Passed 1674 | 114 244 79 1146 91 Spaces Moved 1317 | 84 184 30 952 67 Core 27 | 17 . 10 . . Treads . | . . . . . Legs 1290 | 67 184 20 952 67 Wheels . | . . . . . Hover . | . . . . . Flight . | . . . . . Fastest Speed 50 | 50 120 50 120 120 Average Speed 118 | 105 120 100 120 120 Slowest Speed 150 | 120 120 150 120 120 Overloaded Moves . | . . . . . Propulsion Burnouts . | . . . . . Robots Hopped . | . . . . . Cave-ins Triggered . | . . . . . Exploration Rate (%) 30 | 7 27 7 94 16 Regions Visited 4 Branch Regions 3 Pre-discovered Areas 1 | . . . 1 . Known Exits Taken . | . . . . . Unknown Exits Taken 4 | 1 1 1 1 . Scrap Searched . | . . . . . Spaces Dug . | . . . . . Terrain Destroyed 43 | . 5 38 . . Melee . | . . . . . Projectile . | . . . . . AOE 43 | . 5 38 . . Terrain Rammed . | . . . . . Walls Destroyed . | . . . . . Machines Disabled . | . . . . . Actions | -11 -10 -10 -10 -9 --------- Run | Yrd Mat Min Exi Min Total 1391 | 107 204 50 955 75 Wait 8 | . 3 . . 5 Move 1313 | 83 183 29 951 67 Hop . | . . . . . Pick Up 15 | 10 2 . 3 . Fast Attach 7 | 1 6 . . . Attach 12 | 6 . 5 1 . Detach 4 | 2 2 . . . Swap 1 | 1 . . . . Drop 7 | 1 6 . . . Fire 24 | 3 2 16 . 3 Melee . | . . . . . Ram . | . . . . . Kick . | . . . . . Crush . | . . . . . Escape Stasis . | . . . . . Rewire . | . . . . . Trap . | . . . . . Miscellaneous . | . . . . . Route ------- -11/Scrapyard -10/Materials -10/Mines -10/Exiles (discovered 2 exits: [*Min x2]) -9/Mines (discovered 1 exit: [*Mat]) History --------- Turn | Location | Event 2 | -11/Scrapyard | Met Revision 17 71 | -11/Scrapyard | Discovered new exit (range 8) 115 | -11/Scrapyard | Entered Materials 331 | -10/Materials | Discovered new exit (range 12) 346 | -10/Materials | Build established: Mutant 359 | -10/Materials | Entered Mines 360 | -10/Mines | Assembled infested the area 430 | -10/Mines | Destroyed 21 combat bots 430 | -10/Mines | Deemed a non-threat by the Exiles lab entrance 431 | -10/Mines | Discovered new exit (range 5) 438 | -10/Mines | Entered Exiles 452 | -10/Exiles | Lost 7 parts (1p2n2u2w) 484 | -10/Exiles | Met 8R-AWN 535 | -10/Exiles | Discovered new exit (range 14) 605 | -10/Exiles | Met EX-HEX 654 | -10/Exiles | Met EX-BIN 677 | -10/Exiles | Aligned with FarCom system 678 | -10/Exiles | Given EX-Vault access code 767 | -10/Exiles | Opened EX-Vault 854 | -10/Exiles | Found Prototype Processor 855 | -10/Exiles | Identified 0b10 Alert Chip 901 | -10/Exiles | Warned to stay clear of 0b10 Research branches 988 | -10/Exiles | Met EX-DEC 1057 | -10/Exiles | Visited The Gauntlet 1308 | -10/Exiles | Learned location of Zion (-7) 1389 | -10/Exiles | Discovered new exit (range 15) 1584 | -10/Exiles | Left Exiles lab with 0b10 Alert Chip 1584 | -10/Exiles | Entered Mines 1591 | -9/Mines | Core integrity fell below 50% 1648 | -9/Mines | Discovered new exit (range 5) 1673 | -9/Mines | Core integrity fell below 20% 1675 | -9/Mines | Destroyed by L-31 Rogue with Katana Last Messages --------------- --AM-PHS >>Record! "MSG004964-01" Who left my Assembled plushie in the Analyzer again?! I'm not erasing this message until I get an answer. --BIN EXIT=FOUND [Achievement: Tourist] LOCATION=UNKNOWN GOAL=ESCAPE Receiving FarCom transmissions... Lgt. Assault Rifle destroyed. Heat Sink destroyed. Acquired derelict log, extracted data. Data stored: Storage entrances (x1). EXIT=FOUND K-01 Serf collects debris. Ion Engine destroyed. K-01 Serf collects debris. Aluminum Leg destroyed. [Achievement: First Step to Greatness] Map ----- +----------------------------------------------------+ | | | | | | | | | | | | | | | | | | | | | | | | | | | ?????????????????????????????????? | | ?????????????????????????????????? | | ????##########???????????????????? | | ????# #???????????????????? | | ????# #?????????#######???? | | ????# #???????? ????? | | ????# ####????? ????? | | ????# #??????""" ?????? | | ????# """ ## #??????""" ?????? | | ????# """ ## #???????""g??????? | | ????# """ ## #??????? g??????? | | ????# ## #???????#g#??????? | | ????######### #???????#@#??????? | | ????????????# ###???????#l#??????? | | ????????????# #?????????# #??????? | | ????????????# #?????????# #??????? | | ????????????# #?????????# #??????? | | ?????#??????# #?????????# #??????? | | ????## ##### #??????####g#??????? | | ????# #??????# #??????? | | ???# """ #####??# ## #??????? | | ???? """ #??# ## #??????? | | ????# """ ### #?## #??????? | | ?????# #### ### #??????? | | ?????## #### ## < #??????? | | ??????####???# ##### #??????? | | ?????????????# #???## ##??????? | | ?????????????# #????#### #???????? | | ????????????## ######### #???????? | | ????????????# #???????? | | ????????????# ############???????? | | ????????????# ???????????????????? | | ????????????# ???????????????????? | | ????????????# ???????????????????? | | ????????????# ???????????????????? | | ????????????# ???????????????????? | | ????????????# ???????????????????? | +----------------------------------------------------+ Best States ------------- Heat Dissipation 45 Energy Generation 10 Energy Capacity 250 Matter Stores 300 Matter Capacity 300 Sight Range 16 Terrain Scan Density 10 Evasion (%) 55 Item Schematics ----------------- None Robot Schematics ------------------ None Fabricated ------------ Nothing Alien Tech Used ----------------- None Achievements -------------- Exterminator First Step to Greatness I Survived The Infestation Killing Spree Librarian Quick And Dirty Risk Taker Tourist Uninvited Guest Challenges ------------ None Game ------ Seed WarpLobotomyShifter Manual? 0 Play Time 01:00:16 Cumulative 0.9 hours Start 2024.05.31 @ 01:52:29 End 2024.05.31 @ 03:02:57 Sessions 1 Manual Loads 0 Difficulty Rogue Special Mode None Game No. 1 Rogue 1 Adventurer 0 Explorer 0 Win Type - Total 0 Types 0/0/0/0/0/0/0/0/0 Lore% 6 Gallery% 1 Achievement% 3 Wizard Run 0 Options --------- Layout 1 ASCII 0 Keyboard 0 Movement Arrows Keybinds 0 Fullscreen 1 Font 16/SmallcapsGlow Map View 50x40 Zoom Use 0% Tactical HUD 0 Map Filters NONE Filters NONE Steam SD RUN: 1c6a640c-7bf4-44d6-9349-ddb43ec4dc79